[Event "Winter Chess Classic-A 2018"]
[Site "Saint Louis"]
[Date "2018.11.11"]
[Round "7"]
[White "Robson, Ray"]
[Black "Sevian, Samuel"]
[Result "1/2-1/2"]
[ECO "C65"]
[WhiteElo "2676"]
[BlackElo "2641"]
[Annotator "RC"]
[PlyCount "150"]
[EventDate "2018.11.05"]
[EventType "tourn"]
[EventCountry "USA"]
[SourceTitle "playchess.com"]
[Source "ChessBase"]
[SourceQuality "1"]
[TimeControl "40/5400+30:1800+30"]

1. e4 {[%emt 0:02:47]} e5 {[%emt 0:00:00]} 2. Nf3 {[%emt 0:00:21]} Nc6 {[%emt 0:00:00]} 3. Bb5 {[%emt 0:00:25]} Nf6 {[%emt 0:00:27]} 4. d3 {[%emt 0:00:42]} d6 {[%emt 0:00:33]} 5. O-O {[%emt 0:00:46]} Bd7 {[%emt 0:00:23]} 6. c4 {[%emt 0:05:31]} g6 {[%emt 0:03:33]} 7. h3 {[%emt 0:03:05]} Bg7 {[%emt 0:02:59]} 8. Nc3 {[%emt 0:02:58]} O-O {[%emt 0:10:11]} 9. Be3 {[%emt 0:01:08]} Nb8 {[%emt 0:20:33]} 10. Bxd7 {[%emt 0:02:20]} Nbxd7 {[%emt 0:00:07]} 11. Qb3 {[%emt 0:05:00]} b6 {[%emt 0:02:48]} 12. d4 {[%emt 0:02:18]} exd4 {[%emt 0:03:44]} 13. Nxd4 {[%emt 0:00:50]} Nc5 {[%emt 0:01:10]} 14. Qc2 {[%emt 0:00:23]} Re8 {[%emt 0:01:34]} 15. f3 {[%emt 0:01:24]} Nh5 {[%emt 0:04:20]} 16. Qd2 {[%emt 0:01:32]} Qc8 {[%emt 0:07:04]} 17. Rad1 {[%emt 0:01:45]} Qb7 {[%emt 0:08:14]} 18. Bh6 {[%emt 0:08:43]} Bh8 {[%emt 0:00:19]} 19. Nd5 {[%emt 0:05:50]} c6 {[%emt 0:02:46]} 20. Ne3 {[%emt 0:04:23]} Rad8 {[%emt 0:02:25]} 21. Ne2 {[%emt 0:14:43]} b5 {[%emt 0:02:42]} 22. cxb5 {[%emt 0:03:10]} Qxb5 {[%emt 0:00:26]} 23. Nc3 {[%emt 0:04:10]} Qb4 {[%emt 0:02:18]} 24. Ng4 {[%emt 0:08:40]} Ne6 {[%emt 0:07:44]} 25. Be3 {[%emt 0:01:09]} Bg7 {[%emt 0:00:09]} 26. Rf2 {[%emt 0:02:50]} a5 {[%emt 0:01:01]} 27. Qc2 {[%emt 0:01:47]} Nhf4 {[%emt 0:03:11]} 28. Qc1 {[%emt 0:02:08]} h5 {[%emt 0:00:44]} 29. Bxf4 {[%emt 0:03:54]} hxg4 {[%emt 0:00:54]} 30. fxg4 {[%emt 0:00:21]} Nxf4 {[%emt 0:01:53]} 31. Qxf4 {[%emt 0:00:08]} Rd7 {[%emt 0:00:40]} 32. Qd2 {[%emt 0:06:12]} Be5 {[%emt 0:01:05]} 33. Kh1 {[%emt 0:00:50]} Rb7 {[%emt 0:01:24]} 34. Qc2 {[%emt 0:01:22]} Qc5 {[%emt 0:02:42]} 35. Rd3 {[%emt 0:01:51]} Rb4 {[%emt 0:03:18]} 36. g3 {[%emt 0:01:45]} a4 {[%emt 0:01:17]} 37. a3 {[%emt 0:00:47]} Rb3 {[%emt 0:00:55]} 38. Qe2 {[%emt 0:00:30]} Reb8 {[%emt 0:00:56]} 39. Qf3 {[%emt 0:00:30]} Qc4 {[%emt 0:00:45]} 40. Rdd2 {[%emt 0:00:00]} Bxc3 {[%emt 0:00:00]} 41. bxc3 {[%emt 0:00:55]} Rxc3 {[%emt 0:01:20]} 42. Qf6 {[%emt 0:03:47]} Rxg3 {[%emt 0:19:52]} 43. Kh2 {[%emt 0:01:15]} Qb3 {[%emt 0:03:55]} 44. Qxf7+ {[%emt 0:01:16]} Qxf7 {[%emt 0:00:07]} 45. Rxf7 {[%emt 0:00:04]} Rxa3 {[%emt 0:02:10]} 46. Rf6 {[%emt 0:03:38]} Kg7 {[%emt 0:01:26]} 47. Rfxd6 {[%emt 0:00:27]} Rh8 {[%emt 0:01:31]} 48. Kg2 {[%emt 0:14:28]} Rhxh3 {[%emt 0:01:26]} 49. Rxc6 {[%emt 0:00:46]} Rag3+ {[%emt 0:01:01]} 50. Kf2 {[%emt 0:01:16]} Rxg4 {[%emt 0:00:30]} 51. Rd4 {[%emt 0:01:09]} a3 {[%emt 0:00:15]} 52. Ra6 {[%emt 0:02:37]} Rgg3 {[%emt 0:00:38]} 53. Rdd6 {[%emt 0:01:33]} Rf3+ {[%emt 0:00:32]} 54. Kg2 {[%emt 0:01:01]} Rhg3+ {[%emt 0:01:03]} 55. Kh2 {[%emt 0:00:08]} Rb3 {[%emt 0:01:25]} 56. e5 {[%emt 0:02:42]} Rg5 {[%emt 0:02:01]} 57. e6 {[%emt 0:00:36]} Re5 {[%emt 0:00:41]} 58. Rd2 {[%emt 0:00:25]} Kf6 {[%emt 0:01:11]} 59. Rf2+ {[%emt 0:00:37]} Kg5 {[%emt 0:00:17]} 60. Rg2+ {[%emt 0:01:25]} Kh5 {[%emt 0:00:40]} 61. Ra2 {[%emt 0:00:41]} Ree3 {[%emt 0:00:40]} 62. e7 {[%emt 0:00:14]} Rxe7 {[%emt 0:00:24]} 63. R6xa3 {[%emt 0:00:07]} Rb6 {[%emt 0:00:03]} 64. Rh3+ {[%emt 0:01:21]} Kg5 {[%emt 0:00:04]} 65. Rg2+ {[%emt 0:00:23]} Kf6 {[%emt 0:00:03]} 66. Rhg3 {[%emt 0:00:27]} Kg7 {[%emt 0:00:10]} 67. Rg1 {[%emt 0:00:33]} Re5 {[%emt 0:00:06]} 68. R1g2 {[%emt 0:00:19]} Rc6 {[%emt 0:00:49]} 69. Rg5 {[%emt 0:00:20]} Re1 {[%emt 0:00:09]} 70. R5g3 {[%emt 0:00:20]} Rf6 {[%emt 0:00:17]} 71. Rg4 {[%emt 0:00:21]} Kf7 {[%emt 0:00:13]} 72. Ra4 {[%emt 0:00:31]} Rff1 {[%emt 0:00:28]} 73. Ra7+ {[%emt 0:00:36]} Kf8 {[%emt 0:00:11]} 74. Rb2 {[%emt 0:00:29]} Re7 {[%emt 0:00:17]} 75. Rxe7 {[%emt 0:00:16]} Kxe7 {[%emt 0:00:04]} 1/2-1/2